[Event "*** Titled Tuesday Blitz"]
[Site "Chess.com"]
[Date "2020.05.05"]
[Round "9"]
[White "Sychev_Klementy"]
[Black "Aygehovit1992"]
[Result "1-0"]
[WhiteElo "2889"]
[BlackElo "2697"]
[TimeControl "180+1"]
[EndTime "11:48:43 PDT"]
[Termination "Sychev_Klementy won on time"]

1. e4 {[%clk 0:03:00.9]} 1... d6 {[%clk 0:02:59.9]} 2. d4 {[%clk 0:03:00.7]}
2... g6 {[%clk 0:03:00.3]} 3. Nc3 {[%clk 0:02:59.7]} 3... Bg7 {[%clk 0:02:59.8]}
4. f4 {[%clk 0:03:00.1]} 4... Nf6 {[%clk 0:02:56.7]} 5. Nf3 {[%clk 0:03:00.4]}
5... O-O {[%clk 0:02:54.4]} 6. e5 {[%clk 0:03:00.8]} 6... dxe5 {[%clk
0:02:54.1]} 7. fxe5 {[%clk 0:02:59.9]} 7... Nd5 {[%clk 0:02:54.2]} 8. Bc4 {[%clk
0:02:54.8]} 8... Nb6 {[%clk 0:02:54.1]} 9. Bb3 {[%clk 0:02:53.9]} 9... Nc6
{[%clk 0:02:54.8]} 10. a3 {[%clk 0:02:02.4]} 10... Bg4 {[%clk 0:02:51]} 11. Be3
{[%clk 0:02:01]} 11... Bxf3 {[%clk 0:02:41.1]} 12. gxf3 {[%clk 0:01:59.9]} 12...
Na5 {[%clk 0:02:19.8]} 13. Ba2 {[%clk 0:01:15.8]} 13... Nac4 {[%clk 0:02:18.5]}
14. Bf2 {[%clk 0:01:15]} 14... Nxb2 {[%clk 0:02:15.5]} 15. Qe2 {[%clk
0:01:12.1]} 15... e6 {[%clk 0:02:03.7]} 16. Bb3 {[%clk 0:01:05.2]} 16... Nd5
{[%clk 0:01:49.2]} 17. Ne4 {[%clk 0:00:43.7]} 17... c6 {[%clk 0:01:42]} 18. O-O
{[%clk 0:00:12.4]} 18... b5 {[%clk 0:01:38.1]} 19. Rab1 {[%clk 0:00:11.7]} 19...
Nf4 {[%clk 0:01:30.9]} 20. Qd2 {[%clk 0:00:08.7]} 20... Nh3+ {[%clk 0:01:23.6]}
21. Kh1 {[%clk 0:00:08.3]} 21... Nxf2+ {[%clk 0:01:23.4]} 22. Qxf2 {[%clk
0:00:08]} 22... Nc4 {[%clk 0:01:18.5]} 23. Bxc4 {[%clk 0:00:07.4]} 23... bxc4
{[%clk 0:01:19.4]} 24. Rb7 {[%clk 0:00:07]} 24... Qd5 {[%clk 0:01:15.8]} 25.
Rfb1 {[%clk 0:00:06]} 25... f6 {[%clk 0:00:58.8]} 26. Rxg7+ {[%clk 0:00:03.1]}
26... Kxg7 {[%clk 0:00:58.9]} 27. Rb7+ {[%clk 0:00:02.8]} 27... Rf7 {[%clk
0:00:44.9]} 28. Nxf6 {[%clk 0:00:02.2]} 28... Qa5 {[%clk 0:00:34.5]} 29. Qh4
{[%clk 0:00:02.1]} 29... h5 {[%clk 0:00:13.9]} 30. Nxh5+ {[%clk 0:00:01.8]}
30... Kf8 {[%clk 0:00:07.1]} 31. Rxf7+ {[%clk 0:00:01.7]} 31... Kxf7 {[%clk
0:00:08]} 32. Qf6+ {[%clk 0:00:02.2]} 32... Ke8 {[%clk 0:00:08.5]} 33. Ng7+
{[%clk 0:00:02.3]} 33... Kd7 {[%clk 0:00:07.3]} 34. Qf7+ {[%clk 0:00:02.5]}
34... Kc8 {[%clk 0:00:07.4]} 35. Nxe6 {[%clk 0:00:02.8]} 35... Qe1+ {[%clk
0:00:06.3]} 36. Kg2 {[%clk 0:00:03.1]} 36... Qe2+ {[%clk 0:00:06.2]} 37. Kg3
{[%clk 0:00:03.7]} 37... Qe1+ {[%clk 0:00:06.2]} 38. Kf4 {[%clk 0:00:03.7]}
38... Qd2+ {[%clk 0:00:06.4]} 39. Kg3 {[%clk 0:00:03.8]} 39... Qe1+ {[%clk
0:00:06.5]} 40. Kh3 {[%clk 0:00:04.3]} 40... Qf1+ {[%clk 0:00:05.5]} 41. Kh4
{[%clk 0:00:04.8]} 41... Qf2+ {[%clk 0:00:05.3]} 42. Kg5 {[%clk 0:00:05.3]}
42... Qd2+ {[%clk 0:00:05]} 43. Kf6 {[%clk 0:00:05.1]} 43... Qa5 {[%clk
0:00:05.3]} 44. Qe8+ {[%clk 0:00:04.5]} 44... Kb7 {[%clk 0:00:05.1]} 45. Nc5+
{[%clk 0:00:04.9]} 45... Qxc5 {[%clk 0:00:01.9]} 46. Qd7+ {[%clk 0:00:05.1]} 1-0

[Event "*** Titled Tuesday Blitz"]
[Site "Chess.com"]
[Date "2020.05.05"]
[Round "9"]
[White "MartinCerveny"]
[Black "Macron20hTF1"]
[Result "1/2-1/2"]
[WhiteElo "2592"]
[BlackElo "2397"]
[TimeControl "180+1"]
[EndTime "11:48:43 PDT"]
[Termination "Game drawn - insufficient material"]

1. d4 {[%clk 0:03:00.9]} 1... Nf6 {[%clk 0:02:59.1]} 2. c4 {[%clk 0:03:00.7]}
2... e6 {[%clk 0:02:58.9]} 3. Nf3 {[%clk 0:03:00.1]} 3... b6 {[%clk 0:02:58.8]}
4. g3 {[%clk 0:02:59.8]} 4... Bb7 {[%clk 0:02:59.1]} 5. Bg2 {[%clk 0:03:00.1]}
5... Be7 {[%clk 0:02:59.5]} 6. O-O {[%clk 0:03:00.1]} 6... O-O {[%clk
0:03:00.1]} 7. d5 {[%clk 0:03:00.4]} 7... exd5 {[%clk 0:03:00.1]} 8. Nh4 {[%clk
0:03:00.6]} 8... Na6 {[%clk 0:02:58.9]} 9. cxd5 {[%clk 0:02:59.7]} 9... Nc5
{[%clk 0:02:53.6]} 10. Nc3 {[%clk 0:02:59.5]} 10... a5 {[%clk 0:02:48.1]} 11.
Re1 {[%clk 0:02:57.9]} 11... Re8 {[%clk 0:02:47.4]} 12. e4 {[%clk 0:02:40.4]}
12... d6 {[%clk 0:02:42.6]} 13. f4 {[%clk 0:02:39.9]} 13... Bf8 {[%clk
0:02:27.3]} 14. e5 {[%clk 0:02:39.6]} 14... Nfd7 {[%clk 0:02:27.7]} 15. e6
{[%clk 0:02:29.5]} 15... fxe6 {[%clk 0:02:17.9]} 16. dxe6 {[%clk 0:02:28.4]}
16... Bxg2 {[%clk 0:02:18]} 17. Kxg2 {[%clk 0:02:18.7]} 17... Nxe6 {[%clk
0:01:24.9]} 18. Qd5 {[%clk 0:02:17.5]} 18... Nf6 {[%clk 0:01:22.1]} 19. Qc4
{[%clk 0:02:04.3]} 19... d5 {[%clk 0:01:21.3]} 20. Qc6 {[%clk 0:01:50.9]} 20...
Nd4 {[%clk 0:01:11.6]} 21. Rxe8 {[%clk 0:01:42.6]} 21... Nxc6 {[%clk 0:01:03.1]}
22. Rxd8 {[%clk 0:01:41.8]} 22... Rxd8 {[%clk 0:01:04]} 23. Bd2 {[%clk
0:01:40.2]} 23... d4 {[%clk 0:00:56.7]} 24. Nb5 {[%clk 0:01:39.7]} 24... Ne4
{[%clk 0:00:56.5]} 25. Rd1 {[%clk 0:01:35.5]} 25... Rd7 {[%clk 0:00:47.2]} 26.
Kf3 {[%clk 0:01:33.7]} 26... Nc5 {[%clk 0:00:34.7]} 27. g4 {[%clk 0:01:29.4]}
27... g6 {[%clk 0:00:31.3]} 28. Ng2 {[%clk 0:01:17.9]} 28... d3 {[%clk
0:00:30.3]} 29. Be3 {[%clk 0:01:15.9]} 29... Na4 {[%clk 0:00:25.6]} 30. b3
{[%clk 0:01:14.8]} 30... Nc5 {[%clk 0:00:22.4]} 31. Ne1 {[%clk 0:01:07.4]} 31...
Nb4 {[%clk 0:00:22.4]} 32. a3 {[%clk 0:00:57.8]} 32... Nc2 {[%clk 0:00:21.1]}
33. Nxc2 {[%clk 0:00:57.6]} 33... dxc2 {[%clk 0:00:21]} 34. Rxd7 {[%clk
0:00:57.8]} 34... Nxd7 {[%clk 0:00:20.3]} 35. Bc1 {[%clk 0:00:52.9]} 35... Nc5
{[%clk 0:00:19.6]} 36. Nd4 {[%clk 0:00:51.4]} 36... Bg7 {[%clk 0:00:19.7]} 37.
Nxc2 {[%clk 0:00:50.7]} 37... Nxb3 {[%clk 0:00:20.2]} 38. Be3 {[%clk 0:00:51.3]}
38... c5 {[%clk 0:00:19.8]} 39. Ke4 {[%clk 0:00:51.2]} 39... Kf7 {[%clk
0:00:19.6]} 40. Kd5 {[%clk 0:00:51]} 40... Ke7 {[%clk 0:00:18.9]} 41. Kc6 {[%clk
0:00:50.5]} 41... Nd4+ {[%clk 0:00:18.3]} 42. Bxd4 {[%clk 0:00:49.8]} 42... cxd4
{[%clk 0:00:17.4]} 43. Ne1 {[%clk 0:00:49.9]} 43... Ke6 {[%clk 0:00:12.4]} 44.
Nd3 {[%clk 0:00:49.9]} 44... Bf8 {[%clk 0:00:12.8]} 45. a4 {[%clk 0:00:49.7]}
45... Bc5 {[%clk 0:00:12.6]} 46. h4 {[%clk 0:00:49.1]} 46... h5 {[%clk
0:00:12.3]} 47. f5+ {[%clk 0:00:47.8]} 47... gxf5 {[%clk 0:00:12.6]} 48. gxh5
{[%clk 0:00:48.7]} 48... Kf6 {[%clk 0:00:12.8]} 49. Kd5 {[%clk 0:00:48.5]} 49...
Kg7 {[%clk 0:00:10.2]} 50. Ke5 {[%clk 0:00:47.5]} 50... Kh6 {[%clk 0:00:09.9]}
51. Nf4 {[%clk 0:00:47.6]} 51... Kh7 {[%clk 0:00:04.6]} 52. Kxf5 {[%clk
0:00:47.1]} 52... b5 {[%clk 0:00:03.9]} 53. axb5 {[%clk 0:00:46.3]} 53... a4
{[%clk 0:00:04.8]} 54. Nd3 {[%clk 0:00:46.5]} 54... Bb6 {[%clk 0:00:02.5]} 55.
Ke4 {[%clk 0:00:45.7]} 55... a3 {[%clk 0:00:03.1]} 56. Nc1 {[%clk 0:00:45.2]}
56... Kh6 {[%clk 0:00:02.7]} 57. Kd3 {[%clk 0:00:44.6]} 57... Kxh5 {[%clk
0:00:03.2]} 58. Kc4 {[%clk 0:00:45.5]} 58... Kxh4 {[%clk 0:00:03.5]} 59. Kb3
{[%clk 0:00:45.6]} 59... Kg3 {[%clk 0:00:02.6]} 60. Kxa3 {[%clk 0:00:45.1]}
60... Kf3 {[%clk 0:00:03.2]} 61. Kb3 {[%clk 0:00:45.3]} 61... Ke4 {[%clk
0:00:03.7]} 62. Kc4 {[%clk 0:00:46.2]} 62... Ke5 {[%clk 0:00:03.9]} 63. Nd3+
{[%clk 0:00:47.1]} 63... Kd6 {[%clk 0:00:04.7]} 64. Nb4 {[%clk 0:00:45]} 64...
Kc7 {[%clk 0:00:05.6]} 65. Nc2 {[%clk 0:00:44.1]} 65... Kb7 {[%clk 0:00:06.1]}
66. Nxd4 {[%clk 0:00:43.8]} 66... Bxd4 {[%clk 0:00:06.2]} 67. Kxd4 {[%clk
0:00:43.9]} 67... Kb6 {[%clk 0:00:06.7]} 68. Ke4 {[%clk 0:00:43.3]} 68... Kxb5
{[%clk 0:00:07]} 1/2-1/2

[Event "*** Titled Tuesday Blitz"]
[Site "Chess.com"]
[Date "2020.05.05"]
[Round "9"]
[White "joksijoksi"]
[Black "White_Ghost"]
[Result "1/2-1/2"]
[WhiteElo "2330"]
[BlackElo "2447"]
[TimeControl "180+1"]
[EndTime "11:48:43 PDT"]
[Termination "Game drawn by repetition"]

1. d4 {[%clk 0:03:00.9]} 1... Nf6 {[%clk 0:02:46.9]} 2. c4 {[%clk 0:02:58.7]}
2... d6 {[%clk 0:02:45.9]} 3. Nf3 {[%clk 0:02:53]} 3... Nbd7 {[%clk 0:02:46.8]}
4. Nc3 {[%clk 0:02:51.9]} 4... g6 {[%clk 0:02:46.9]} 5. e4 {[%clk 0:02:50.7]}
5... e5 {[%clk 0:02:46.8]} 6. Be2 {[%clk 0:02:48.4]} 6... Bg7 {[%clk 0:02:46.4]}
7. O-O {[%clk 0:02:47.6]} 7... O-O {[%clk 0:02:46.5]} 8. Re1 {[%clk 0:02:47.1]}
8... a6 {[%clk 0:02:43]} 9. Bf1 {[%clk 0:02:37.2]} 9... c6 {[%clk 0:02:32.3]}
10. h3 {[%clk 0:02:23]} 10... Qc7 {[%clk 0:02:30.2]} 11. Be3 {[%clk 0:02:20.9]}
11... Re8 {[%clk 0:02:15.6]} 12. a4 {[%clk 0:01:52.5]} 12... exd4 {[%clk
0:01:48.2]} 13. Bxd4 {[%clk 0:01:50.5]} 13... Ne5 {[%clk 0:01:45.1]} 14. a5
{[%clk 0:01:41.5]} 14... Be6 {[%clk 0:01:42.5]} 15. b3 {[%clk 0:01:28.9]} 15...
Nfd7 {[%clk 0:01:24.9]} 16. Nxe5 {[%clk 0:01:09.2]} 16... dxe5 {[%clk
0:01:16.2]} 17. Be3 {[%clk 0:01:07.8]} 17... Bf8 {[%clk 0:01:16.7]} 18. Qc2
{[%clk 0:01:05]} 18... Bb4 {[%clk 0:01:14.4]} 19. Red1 {[%clk 0:01:01.4]} 19...
Bxa5 {[%clk 0:01:07.7]} 20. Na4 {[%clk 0:00:57.3]} 20... b5 {[%clk 0:00:56.8]}
21. Nc5 {[%clk 0:00:48.2]} 21... Nxc5 {[%clk 0:00:53.5]} 22. Bxc5 {[%clk
0:00:49.1]} 22... Red8 {[%clk 0:00:43.2]} 23. Rxd8+ {[%clk 0:00:35.5]} 23...
Rxd8 {[%clk 0:00:40.9]} 24. b4 {[%clk 0:00:35.7]} 24... Bb6 {[%clk 0:00:37.2]}
25. Rxa6 {[%clk 0:00:34]} 25... Bxc5 {[%clk 0:00:36.2]} 26. bxc5 {[%clk
0:00:34.9]} 26... b4 {[%clk 0:00:30.4]} 27. Qa4 {[%clk 0:00:31.6]} 27... Rd1
{[%clk 0:00:22.9]} 28. Qxd1 {[%clk 0:00:30.2]} 28... Qb7 {[%clk 0:00:14.7]} 29.
Rb6 {[%clk 0:00:29.4]} 29... Qe7 {[%clk 0:00:14.4]} 30. Rxb4 {[%clk 0:00:19.5]}
30... Qxc5 {[%clk 0:00:13.9]} 31. Rb3 {[%clk 0:00:19.2]} 31... h5 {[%clk
0:00:12.5]} 32. Rg3 {[%clk 0:00:18.7]} 32... Kh7 {[%clk 0:00:11.4]} 33. Re3
{[%clk 0:00:17]} 33... Kg7 {[%clk 0:00:09.2]} 34. Qc1 {[%clk 0:00:15.7]} 34...
Qd4 {[%clk 0:00:08.9]} 35. Qc3 {[%clk 0:00:13.4]} 35... Qd1 {[%clk 0:00:07.8]}
36. Qd3 {[%clk 0:00:13.9]} 36... Qa4 {[%clk 0:00:07.5]} 37. Qd6 {[%clk
0:00:13.3]} 37... Qa6 {[%clk 0:00:04.5]} 38. Qxe5+ {[%clk 0:00:13.1]} 38... Kh7
{[%clk 0:00:04.7]} 39. c5 {[%clk 0:00:12.9]} 39... Qa2 {[%clk 0:00:03.8]} 40.
Rf3 {[%clk 0:00:11.9]} 40... Qb1 {[%clk 0:00:04.7]} 41. Qc7 {[%clk 0:00:06.7]}
41... Kg7 {[%clk 0:00:03.8]} 42. Kh2 {[%clk 0:00:04.8]} 42... Qxf1 {[%clk
0:00:03]} 43. Qe5+ {[%clk 0:00:05.4]} 43... Kg8 {[%clk 0:00:02.6]} 44. Qb8+
{[%clk 0:00:05.1]} 44... Kg7 {[%clk 0:00:02.7]} 45. Qe5+ {[%clk 0:00:05.7]}
45... Kg8 {[%clk 0:00:03.2]} 46. Rg3 {[%clk 0:00:06.3]} 46... Qxf2 {[%clk
0:00:02.6]} 47. Rxg6+ {[%clk 0:00:06.6]} 47... fxg6 {[%clk 0:00:03.4]} 48. Qxe6+
{[%clk 0:00:07.5]} 48... Kh7 {[%clk 0:00:03]} 49. Qd5 {[%clk 0:00:06.7]} 49...
Qf4+ {[%clk 0:00:02.3]} 50. g3 {[%clk 0:00:06.4]} 50... Qf2+ {[%clk 0:00:02.4]}
51. Kh1 {[%clk 0:00:07.3]} 51... Qf1+ {[%clk 0:00:03.2]} 52. Kh2 {[%clk
0:00:07.2]} 52... Qf2+ {[%clk 0:00:04.1]} 53. Kh1 {[%clk 0:00:07.8]} 53... Qf1+
{[%clk 0:00:05]} 54. Kh2 {[%clk 0:00:08.7]} 54... Qf2+ {[%clk 0:00:05.9]}
1/2-1/2

[Event "*** Titled Tuesday Blitz"]
[Site "Chess.com"]
[Date "2020.05.05"]
[Round "9"]
[White "mfwagnerpeixoto"]
[Black "Cocaino74"]
[Result "0-1"]
[WhiteElo "2204"]
[BlackElo "2349"]
[TimeControl "180+1"]
[EndTime "11:48:45 PDT"]
[Termination "Cocaino74 won by checkmate"]

1. e4 {[%clk 0:03:00.9]} 1... c5 {[%clk 0:02:58.4]} 2. Nf3 {[%clk 0:02:59.8]}
2... Nc6 {[%clk 0:02:58.9]} 3. d4 {[%clk 0:03:00.2]} 3... cxd4 {[%clk
0:02:59.8]} 4. Nxd4 {[%clk 0:03:00.5]} 4... g6 {[%clk 0:03:00.7]} 5. Nc3 {[%clk
0:03:00.1]} 5... Bg7 {[%clk 0:03:00.7]} 6. Be3 {[%clk 0:03:00.6]} 6... Nf6
{[%clk 0:03:01.4]} 7. Bc4 {[%clk 0:03:00.2]} 7... O-O {[%clk 0:03:01.9]} 8. Bb3
{[%clk 0:02:59.8]} 8... d6 {[%clk 0:03:01.8]} 9. f3 {[%clk 0:02:58]} 9... Bd7
{[%clk 0:03:01.1]} 10. Qd2 {[%clk 0:02:57.8]} 10... Na5 {[%clk 0:03:01.5]} 11.
O-O {[%clk 0:02:54.5]} 11... Rc8 {[%clk 0:02:56.1]} 12. Qe2 {[%clk 0:02:48.1]}
12... a6 {[%clk 0:02:50.5]} 13. Qf2 {[%clk 0:02:06.3]} 13... b5 {[%clk
0:02:37.1]} 14. Rad1 {[%clk 0:01:58.2]} 14... Nc4 {[%clk 0:02:20.8]} 15. Bc1
{[%clk 0:01:53.1]} 15... e5 {[%clk 0:02:06.8]} 16. Nde2 {[%clk 0:01:51.6]} 16...
Be6 {[%clk 0:02:01.4]} 17. Kh1 {[%clk 0:01:48.9]} 17... Qe7 {[%clk 0:01:17.1]}
18. Qh4 {[%clk 0:01:37.9]} 18... b4 {[%clk 0:01:02.7]} 19. Na4 {[%clk
0:01:29.3]} 19... Qc7 {[%clk 0:00:44.9]} 20. Bg5 {[%clk 0:01:23]} 20... Nd7
{[%clk 0:00:44.4]} 21. Rd3 {[%clk 0:01:01]} 21... f6 {[%clk 0:00:38.7]} 22. Bc1
{[%clk 0:00:59.2]} 22... Nc5 {[%clk 0:00:32.7]} 23. Nxc5 {[%clk 0:00:53.6]}
23... Qxc5 {[%clk 0:00:33.6]} 24. Qf2 {[%clk 0:00:49.4]} 24... Qxf2 {[%clk
0:00:06.9]} 25. Rxf2 {[%clk 0:00:50.3]} 25... Rfd8 {[%clk 0:00:07.7]} 26. Rf1
{[%clk 0:00:47.2]} 26... a5 {[%clk 0:00:07.4]} 27. Rfd1 {[%clk 0:00:44.3]} 27...
Bf8 {[%clk 0:00:07.8]} 28. h3 {[%clk 0:00:37.6]} 28... Kf7 {[%clk 0:00:06.2]}
29. Kh2 {[%clk 0:00:36.4]} 29... Ra8 {[%clk 0:00:04.6]} 30. Ba4 {[%clk
0:00:29.5]} 30... Nb6 {[%clk 0:00:03.4]} 31. Bc6 {[%clk 0:00:29.3]} 31... Rac8
{[%clk 0:00:02.8]} 32. Bd5 {[%clk 0:00:26.6]} 32... Nxd5 {[%clk 0:00:03.2]} 33.
exd5 {[%clk 0:00:27.5]} 33... Bf5 {[%clk 0:00:04]} 34. R3d2 {[%clk 0:00:25.1]}
34... Bxc2 {[%clk 0:00:04.2]} 35. f4 {[%clk 0:00:17.6]} 35... Bxd1 {[%clk
0:00:03.9]} 36. Rxd1 {[%clk 0:00:18.5]} 36... e4 {[%clk 0:00:03.6]} 37. Ng3
{[%clk 0:00:17.7]} 37... f5 {[%clk 0:00:03.7]} 38. Ne2 {[%clk 0:00:17]} 38...
Bg7 {[%clk 0:00:04]} 39. Be3 {[%clk 0:00:17.9]} 39... Bxb2 {[%clk 0:00:03.3]}
40. Nd4 {[%clk 0:00:18.8]} 40... Bxd4 {[%clk 0:00:03.4]} 41. Bxd4 {[%clk
0:00:19.7]} 41... Rc2 {[%clk 0:00:03.8]} 42. Kg3 {[%clk 0:00:17.9]} 42... Rdc8
{[%clk 0:00:03.7]} 43. h4 {[%clk 0:00:17.4]} 43... Rc1 {[%clk 0:00:04.1]} 44.
Rd2 {[%clk 0:00:16.6]} 44... R8c2 {[%clk 0:00:04.4]} 45. Be3 {[%clk 0:00:16.4]}
45... Rxd2 {[%clk 0:00:04.6]} 46. Bxd2 {[%clk 0:00:17.3]} 46... Rd1 {[%clk
0:00:05.2]} 47. Be3 {[%clk 0:00:17.6]} 47... Rxd5 {[%clk 0:00:05.2]} 48. h5
{[%clk 0:00:17.1]} 48... a4 {[%clk 0:00:05]} 49. hxg6+ {[%clk 0:00:16.5]} 49...
hxg6 {[%clk 0:00:05.9]} 50. Kh4 {[%clk 0:00:17]} 50... Rd3 {[%clk 0:00:05.5]}
51. Kg5 {[%clk 0:00:17.9]} 51... Rxe3 {[%clk 0:00:05.3]} 52. g3 {[%clk
0:00:18.8]} 52... Rxg3+ {[%clk 0:00:05.4]} 53. Kh4 {[%clk 0:00:18.4]} 53... Rg4+
{[%clk 0:00:05.8]} 54. Kh3 {[%clk 0:00:18.8]} 54... e3 {[%clk 0:00:06.5]} 55. a3
{[%clk 0:00:18.8]} 55... e2 {[%clk 0:00:06.9]} 56. axb4 {[%clk 0:00:18.4]} 56...
e1=Q {[%clk 0:00:06.9]} 57. b5 {[%clk 0:00:19.3]} 57... Qh1# {[%clk 0:00:06.6]}
0-1

[Event "*** Titled Tuesday Blitz"]
[Site "Chess.com"]
[Date "2020.05.05"]
[Round "9"]
[White "calin_dragomirescu"]
[Black "picturesquecheck"]
[Result "0-1"]
[WhiteElo "2287"]
[BlackElo "2105"]
[TimeControl "180+1"]
[EndTime "11:48:46 PDT"]
[Termination "picturesquecheck won by checkmate"]

1. Nf3 {[%clk 0:02:40.6]} 1... d6 {[%clk 0:02:57.2]} 2. c4 {[%clk 0:02:40]} 2...
c5 {[%clk 0:02:56.6]} 3. g3 {[%clk 0:02:39]} 3... Nc6 {[%clk 0:02:56.6]} 4. Bg2
{[%clk 0:02:39.3]} 4... Nf6 {[%clk 0:02:57.1]} 5. O-O {[%clk 0:02:39.5]} 5... g6
{[%clk 0:02:57.2]} 6. Nc3 {[%clk 0:02:39.9]} 6... Bg7 {[%clk 0:02:57.2]} 7. d4
{[%clk 0:02:39.5]} 7... cxd4 {[%clk 0:02:56.9]} 8. Nxd4 {[%clk 0:02:38.9]} 8...
Bd7 {[%clk 0:02:56.9]} 9. e3 {[%clk 0:02:36.8]} 9... O-O {[%clk 0:02:55.8]} 10.
b3 {[%clk 0:02:37.1]} 10... Rc8 {[%clk 0:02:54.4]} 11. Bb2 {[%clk 0:02:37.2]}
11... a6 {[%clk 0:02:47.1]} 12. Rc1 {[%clk 0:02:36.5]} 12... Qc7 {[%clk
0:02:45.5]} 13. h3 {[%clk 0:02:36.4]} 13... Rfd8 {[%clk 0:02:44.6]} 14. Kh2
{[%clk 0:02:36.2]} 14... e5 {[%clk 0:02:42.6]} 15. Nde2 {[%clk 0:02:30.6]} 15...
Be6 {[%clk 0:02:36.8]} 16. Nd5 {[%clk 0:02:30.1]} 16... Qb8 {[%clk 0:02:25.9]}
17. Nec3 {[%clk 0:02:27.6]} 17... Bxd5 {[%clk 0:02:19.8]} 18. Nxd5 {[%clk
0:02:26.3]} 18... Nxd5 {[%clk 0:02:18.7]} 19. Bxd5 {[%clk 0:02:24.4]} 19... Kf8
{[%clk 0:02:15.8]} 20. a4 {[%clk 0:02:20.7]} 20... Ne7 {[%clk 0:02:15.5]} 21.
Bg2 {[%clk 0:02:19]} 21... f5 {[%clk 0:02:03.2]} 22. Qd2 {[%clk 0:02:17.7]}
22... e4 {[%clk 0:01:56.5]} 23. Bxg7+ {[%clk 0:02:15.5]} 23... Kxg7 {[%clk
0:01:56.6]} 24. Rfd1 {[%clk 0:02:13.5]} 24... d5 {[%clk 0:01:56.4]} 25. c5
{[%clk 0:02:04.9]} 25... Qe5 {[%clk 0:01:53.6]} 26. b4 {[%clk 0:02:02.9]} 26...
h5 {[%clk 0:01:33.1]} 27. h4 {[%clk 0:02:01.7]} 27... Kf6 {[%clk 0:01:32.6]} 28.
Qc3 {[%clk 0:02:01.7]} 28... Qxc3 {[%clk 0:01:23.6]} 29. Rxc3 {[%clk 0:02:00.4]}
29... b6 {[%clk 0:01:22.7]} 30. Bf1 {[%clk 0:01:57.1]} 30... a5 {[%clk
0:01:14.1]} 31. bxa5 {[%clk 0:01:47.5]} 31... bxc5 {[%clk 0:01:13.7]} 32. a6
{[%clk 0:01:41.2]} 32... c4 {[%clk 0:01:09.9]} 33. Rb1 {[%clk 0:01:33.7]} 33...
Rd6 {[%clk 0:01:04.3]} 34. a7 {[%clk 0:01:24.2]} 34... Ra8 {[%clk 0:01:03.4]}
35. Rb7 {[%clk 0:01:22.4]} 35... Ra6 {[%clk 0:01:02.8]} 36. Bxc4 {[%clk
0:01:09.8]} 36... dxc4 {[%clk 0:00:59.8]} 37. Rxc4 {[%clk 0:01:09.7]} 37...
R8xa7 {[%clk 0:00:58.4]} 38. Rxa7 {[%clk 0:00:57.8]} 38... Rxa7 {[%clk
0:00:58.3]} 39. Kg2 {[%clk 0:00:57.8]} 39... Nd5 {[%clk 0:00:55.8]} 40. Rc6+
{[%clk 0:00:54.6]} 40... Kg7 {[%clk 0:00:55.2]} 41. Rc4 {[%clk 0:00:54.5]} 41...
Kh6 {[%clk 0:00:54.6]} 42. Rd4 {[%clk 0:00:53.8]} 42... Nc3 {[%clk 0:00:53.9]}
43. f3 {[%clk 0:00:51.5]} 43... exf3+ {[%clk 0:00:53.4]} 44. Kxf3 {[%clk
0:00:51.3]} 44... Rxa4 {[%clk 0:00:53.4]} 45. Rd3 {[%clk 0:00:50.9]} 45... Nb5
{[%clk 0:00:51.2]} 46. Rd8 {[%clk 0:00:46.3]} 46... Nc7 {[%clk 0:00:48.9]} 47.
Rd6 {[%clk 0:00:44.9]} 47... Ra5 {[%clk 0:00:47.4]} 48. Rc6 {[%clk 0:00:44.1]}
48... Nd5 {[%clk 0:00:47]} 49. Rd6 {[%clk 0:00:43.7]} 49... Nc3 {[%clk
0:00:44.6]} 50. Rc6 {[%clk 0:00:41]} 50... Ne4 {[%clk 0:00:44.7]} 51. Kf4 {[%clk
0:00:40.7]} 51... Ra2 {[%clk 0:00:38.3]} 52. Rc8 {[%clk 0:00:38.7]} 52... Kg7
{[%clk 0:00:33.9]} 53. Ke5 {[%clk 0:00:34.9]} 53... Ra5+ {[%clk 0:00:32.3]} 54.
Kf4 {[%clk 0:00:34.2]} 54... Ra7 {[%clk 0:00:32.2]} 55. Ke5 {[%clk 0:00:33.1]}
55... Re7+ {[%clk 0:00:31]} 56. Kf4 {[%clk 0:00:33]} 56... Nf6 {[%clk
0:00:28.3]} 57. Kf3 {[%clk 0:00:31.2]} 57... Ng4 {[%clk 0:00:27.6]} 58. Rc3
{[%clk 0:00:29.9]} 58... Kf6 {[%clk 0:00:27.2]} 59. Rc6+ {[%clk 0:00:29.1]}
59... Re6 {[%clk 0:00:27.4]} 60. Rc3 {[%clk 0:00:29.3]} 60... Ne5+ {[%clk
0:00:26.8]} 61. Kf2 {[%clk 0:00:27.9]} 61... Kg7 {[%clk 0:00:25.7]} 62. Ra3
{[%clk 0:00:27]} 62... Kh6 {[%clk 0:00:25.5]} 63. Rb3 {[%clk 0:00:27]} 63...
Ng4+ {[%clk 0:00:24.3]} 64. Kf3 {[%clk 0:00:26.5]} 64... Rc6 {[%clk 0:00:24.4]}
65. Ra3 {[%clk 0:00:26.3]} 65... Rc2 {[%clk 0:00:23.9]} 66. Rb3 {[%clk
0:00:25.9]} 66... Rf2# {[%clk 0:00:23]} 0-1